fUSD/lending_fUSD_20250123
["ID","MTS","AMOUNT","RATE_DAILY","PERIOD"]
[350123065,1737643839864,-500.0,0.00016438,2]
[350123067,1737643839873,-500.0,0.00016438,2]
[350123069,1737643839883,-577.78,0.00016438,2]
[350123071,1737643839893,-608.72,0.00016438,2]
[350123073,1737643839902,-2083.49,0.00016438,2]
[350123075,1737643839912,-500.0,0.00016438,2]
[350123077,1737643839921,-500.0,0.00016438,2]
[350123079,1737643839931,-3487.11,0.00016438,2]
[350123081,1737643839941,-500.0,0.00016438,2]
[350123083,1737643839950,-2271.23,0.00016438,2]
[350123085,1737643839960,-2108.97,0.00016438,2]
[350123087,1737643839971,-500.0,0.00016438,2]
[350123089,1737643839980,-500.0,0.00016438,2]
[350123091,1737643839990,-2313.46,0.00016438,2]
[350123094,1737643840000,-500.0,0.00016438,2]
[350123098,1737643840010,-500.0,0.00016438,2]
[350123101,1737643840021,-500.0,0.00016438,2]
[350123129,1737643840152,-500.0,0.00016438,2]
[350123132,1737643840163,-1779.58,0.00016438,2]
[350123135,1737643840173,-500.0,0.00016438,2]
[350123138,1737643840183,-497.6543459,0.00016438,2]
[350123141,1737643840193,-1204.66,0.00016438,2]
[350123145,1737643840203,-936.89,0.00016438,2]
[350123149,1737643840213,-500.0,0.00016438,2]
[350123152,1737643840222,-699.83,0.00016438,2]
[350123155,1737643840231,-500.0,0.00016438,2]
[350123158,1737643840241,-500.0,0.00016438,2]
[350123161,1737643840251,-613.47477649,0.00016438,2]
[350123164,1737643840262,-980.86,0.00016438,2]
[350123167,1737643840272,-1983.91,0.00016438,2]
[350123170,1737643840282,-1040.51,0.00016438,2]
[350123173,1737643840291,-2085.65,0.00016438,2]
[350123176,1737643840301,-500.0,0.00016438,2]
[350123179,1737643840310,-944.5,0.00016438,2]
[350123182,1737643840319,-500.0,0.00016438,2]
[350123185,1737643840329,-1252.36,0.00016438,2]
[350123188,1737643840338,-500.0,0.00016438,2]
[350123191,1737643840352,-825.5,0.00016438,2]
[350123194,1737643840362,-500.0,0.00016438,2]
[350123197,1737643840371,-500.0,0.00016438,2]
[350123200,1737643840381,-500.0,0.00016438,2]
[350123203,1737643840391,-500.0,0.00016438,2]
[350123206,1737643840401,-500.0,0.00016438,2]
[350123209,1737643840410,-527.59,0.00016438,2]
[350123212,1737643840420,-1618.86,0.00016438,2]
[350123215,1737643840430,-500.0,0.00016438,2]
[350123218,1737643840439,-500.0,0.00016438,2]
[350123221,1737643840449,-500.0,0.00016438,2]
[350123224,1737643840459,-500.0,0.00016438,2]
[350123227,1737643840469,-694.26,0.00016438,2]
[350123230,1737643840479,-645.22,0.00016438,2]
[350123233,1737643840489,-510.41822544,0.00016438,2]
[350123236,1737643840498,-2343.74,0.00016438,2]
[350123238,1737643840507,-500.0,0.00016438,2]
[350123240,1737643840517,-500.0,0.00016438,2]
[350123242,1737643840526,-500.0,0.00016438,2]
[350123244,1737643840535,-500.0,0.00016438,2]
[350123247,1737643840545,-1723.16,0.00016438,2]
[350123249,1737643840555,-1297.71,0.00016438,2]
[350123252,1737643840564,-920.63,0.00016438,2]
[350123255,1737643840573,-1214.54,0.00016438,2]
[350123258,1737643840582,-500.0,0.00016438,2]
[350123261,1737643840591,-500.0,0.00016438,2]
[350123265,1737643840604,-500.0,0.00016438,2]
[350123268,1737643840613,-500.0,0.00016438,2]
[350123271,1737643840623,-500.0,0.00016438,2]
[350123273,1737643840633,-1000.0,0.00016438,2]
[350123276,1737643840642,-500.0,0.00016438,2]
[350123279,1737643840652,-2037.22,0.00016438,2]
[350123282,1737643840661,-1209.91,0.00016438,2]
[350123285,1737643840671,-2330.42,0.00016438,2]
[350123288,1737643840680,-500.0,0.00016438,2]
[350123291,1737643840690,-500.0,0.00016438,2]
[350123294,1737643840699,-1132.49,0.00016438,2]
[350123297,1737643840708,-934.4,0.00016438,2]
[350123300,1737643840718,-729.36,0.00016438,2]
[350123303,1737643840727,-500.0,0.00016438,2]
[350123306,1737643840736,-500.0,0.00016438,2]
[350123309,1737643840747,-1227.33,0.00016438,2]
[350123312,1737643840757,-541.17,0.00016438,2]
[350123314,1737643840769,-500.0,0.00016438,2]
[350123317,1737643840778,-500.0,0.00016438,2]
[350123320,1737643840789,-500.0,0.00016438,2]
[350123323,1737643840799,-500.0,0.00016438,2]
[350123327,1737643840808,-2386.51,0.00016438,2]
[350123330,1737643840818,-500.0,0.00016438,2]
[350123334,1737643840827,-500.0,0.00016438,2]
[350123336,1737643840836,-500.0,0.00016438,2]
[350123340,1737643840847,-982.9,0.00016438,2]
[350123343,1737643840856,-502.77695158,0.00016438,2]
[350123346,1737643840866,-1424.77,0.00016438,2]
[350123349,1737643840875,-500.0,0.00016438,2]
[350123352,1737643840884,-500.0,0.00016438,2]
[350123354,1737643840893,-885.65,0.00016438,2]
[350123356,1737643840902,-638.19262268,0.00016438,2]
[350123360,1737643840912,-512.70496885,0.00016438,2]
[350123364,1737643840922,-500.0,0.00016438,2]
[350123367,1737643840931,-502.03960462,0.00016438,2]
[350123370,1737643840941,-500.0,0.00016438,2]
[350123373,1737643840951,-502.50842499,0.00016438,2]
[350123376,1737643840960,-635.61,0.00016438,2]
[350123379,1737643840969,-500.0,0.00016438,2]
[350123382,1737643840978,-500.0,0.00016438,2]
[350123385,1737643840988,-500.0,0.00016438,2]
[350123388,1737643840998,-500.0,0.00016438,2]
[350123391,1737643841007,-500.0,0.00016438,2]
[350123394,1737643841016,-776.47,0.00016438,2]
[350123397,1737643841025,-1713.0,0.00016438,2]
[350123400,1737643841034,-503.08975116,0.00016438,2]
[350123403,1737643841044,-1720.11,0.00016438,2]
[350123405,1737643841053,-505.16849597,0.00016438,2]
[350123408,1737643841063,-936.39,0.00016438,2]
[350123411,1737643841071,-500.0,0.00016438,2]
[350123414,1737643841080,-500.0,0.00016438,2]
[350123417,1737643841089,-500.0,0.00016438,2]
[350123420,1737643841101,-514.67849806,0.00016438,2]
[350123423,1737643841111,-500.0,0.00016438,2]
[350123426,1737643841120,-500.0,0.00016438,2]
[350123429,1737643841129,-500.0,0.00016438,2]
[350123432,1737643841138,-500.0,0.00016438,2]
[350123435,1737643841148,-754.05,0.00016438,2]
[350123437,1737643841158,-500.0,0.00016438,2]
[350123439,1737643841167,-631.08,0.00016438,2]
[350123440,1737643841176,-500.0,0.00016438,2]
[350123442,1737643841186,-949.85,0.00016438,2]
[350123445,1737643841195,-500.0,0.00016438,2]
[350123446,1737643841205,-500.0,0.00016438,2]
[350123448,1737643841214,-500.0,0.00016438,2]
[350123449,1737643841224,-1353.35,0.00016438,2]
[350123450,1737643841233,-500.0,0.00016438,2]
[350123451,1737643841243,-500.0,0.00016438,2]
[350123452,1737643841252,-500.0,0.00016438,2]
[350123453,1737643841262,-910.03,0.00016438,2]
[350123454,1737643841271,-500.0,0.00016438,2]
[350123455,1737643841280,-500.0,0.00016438,2]
[350123456,1737643841290,-500.0,0.00016438,2]
[350123457,1737643841300,-500.0,0.00016438,2]
[350123458,1737643841312,-901.29,0.00016438,2]
[350123459,1737643841321,-505.36990196,0.00016438,2]
[350123461,1737643841331,-504.76860549,0.00016438,2]
[350123463,1737643841341,-500.0,0.00016438,2]
[350123464,1737643841353,-500.0,0.00016438,2]
[350123466,1737643841363,-500.0,0.00016438,2]
[350123467,1737643841372,-500.0,0.00016438,2]
[350123468,1737643841382,-500.0,0.00016438,2]
[350123469,1737643841391,-500.0,0.00016438,2]
[350123470,1737643841401,-500.0,0.00016438,2]
[350123471,1737643841411,-907.47,0.00016438,2]
[350123472,1737643841421,-500.0,0.00016438,2]
[350123473,1737643841431,-551.01,0.00016438,2]
[350123474,1737643841441,-500.0,0.00016438,2]
[350123475,1737643841451,-500.0,0.00016438,2]
[350123476,1737643841461,-500.0,0.00016438,2]
[350123477,1737643841471,-642.67,0.00016438,2]
[350123478,1737643841480,-500.0,0.00016438,2]
[350123479,1737643841490,-512.44771622,0.00016438,2]
[350123480,1737643841499,-1224.77,0.00016438,2]
[350123481,1737643841509,-1968.67,0.00016438,2]
[350123482,1737643841519,-500.0,0.00016438,2]
[350123483,1737643841528,-500.0,0.00016438,2]
[350123484,1737643841537,-500.0,0.00016438,2]
[350123485,1737643841546,-500.0,0.00016438,2]
[350123486,1737643841556,-1274.42,0.00016438,2]
[350123487,1737643841565,-500.0,0.00016438,2]
[350123488,1737643841574,-500.0,0.00016438,2]
[350123489,1737643841583,-500.0,0.00016438,2]
[350123490,1737643841592,-2187.83,0.00016438,2]
[350123491,1737643841606,-500.0,0.00016438,2]
[350123492,1737643841615,-500.0,0.00016438,2]
[350123493,1737643841624,-500.0,0.00016438,2]
[350123494,1737643841634,-500.0,0.00016438,2]
[350123495,1737643841643,-500.0,0.00016438,2]
[350123496,1737643841653,-500.0,0.00016438,2]
[350123497,1737643841662,-500.0,0.00016438,2]
[350123498,1737643841671,-500.0,0.00016438,2]
[350123499,1737643841680,-500.0,0.00016438,2]
[350123500,1737643841689,-500.0,0.00016438,2]
[350123501,1737643841699,-500.0,0.00016438,2]
[350123502,1737643841708,-1035.7,0.00016438,2]
[350123503,1737643841718,-500.0,0.00016438,2]
[350123504,1737643841727,-500.0,0.00016438,2]
[350123505,1737643841737,-502.06307347,0.00016438,2]
[350123506,1737643841747,-500.0,0.00016438,2]
[350123507,1737643841757,-1126.99,0.00016438,2]
[350123508,1737643841768,-1503.48,0.00016438,2]
[350123509,1737643841778,-150.0,0.0001644,2]
[350123510,1737643841787,-150.0,0.0001644,2]
[350123511,1737643841796,-150.0,0.00016452,2]
[350123512,1737643841807,-150.0,0.00016453,2]
[350123513,1737643841816,-1000.0,0.00016456,2]
[350123514,1737643841825,-1005.73396745,0.00016459,2]
[350123515,1737643841835,-150.0,0.00016462,2]
[350123516,1737643841846,-1000.0,0.00016467,2]
[350123517,1737643841856,-1000.0,0.0001647,2]
[350123518,1737643841866,-150.0,0.00016473,2]
[350123519,1737643841875,-150.0,0.00016475,2]
[350123520,1737643841885,-150.0,0.00016479,2]
[350123521,1737643841895,-150.0,0.00016483,2]
[350123522,1737643841904,-1000.0,0.00016487,2]
[350123523,1737643841914,-277.87200092,0.00016489,2]
[350123524,1737643841923,-150.0,0.00016491,2]
[350123525,1737643841933,-1000.0,0.00016491,2]
[350123526,1737643841943,-150.0,0.00016491,2]
[350123527,1737643841955,-1450.39,0.000165,2]
[350123528,1737643841964,-2200.0,0.000165,6]
[350123529,1737643841973,-1000.0,0.00016505,2]
[350123530,1737643841983,-150.0,0.00016506,2]
[350123531,1737643841992,-1000.0,0.00016506,2]
[350123532,1737643842001,-150.0,0.00016507,2]
[350123533,1737643842010,-438.5675467,0.0001651,2]
[350123534,1737643842019,-6521.7840071,0.0001651,2]
[350123535,1737643842030,-2293.6582538,0.0001651,2]
[350123536,1737643842039,-150.0,0.00016514,2]
[350123537,1737643842048,-150.0,0.00016515,2]
[350123538,1737643842058,-1000.0,0.00016517,2]
[350123539,1737643842071,-1000.0,0.00016518,2]
[350123540,1737643842080,-150.0,0.00016519,2]
[350123541,1737643842089,-1000.0,0.00016519,2]
[350123542,1737643842101,-1000.0,0.00016521,2]
[350123543,1737643842110,-1000.0,0.00016521,2]
[350123544,1737643842120,-1000.0,0.00016521,2]
[350123545,1737643842130,-1000.0,0.00016521,2]
[350123546,1737643842140,-1000.0,0.00016521,2]
[350123547,1737643842151,-1000.0,0.00016521,2]
[350123548,1737643842161,-1000.0,0.00016521,2]
[350123549,1737643842170,-1000.0,0.00016521,2]
[350123550,1737643842180,-1000.0,0.00016521,2]
[350123551,1737643842190,-1000.0,0.00016521,2]
[350123552,1737643842199,-1000.0,0.00016521,2]
[350123553,1737643842212,-1000.0,0.00016521,2]
[350123554,1737643842221,-1000.0,0.00016521,2]
[350123555,1737643842231,-1000.0,0.00016521,2]
[350123556,1737643842241,-1000.0,0.00016521,2]
[350123557,1737643842250,-1000.0,0.00016521,2]
[350123558,1737643842260,-1000.0,0.00016521,2]
[350123559,1737643842269,-1000.0,0.00016521,2]
[350123560,1737643842279,-1000.0,0.00016521,2]
[350123561,1737643842289,-1000.0,0.00016521,2]
[350123562,1737643842298,-1000.0,0.00016521,2]
[350123563,1737643842308,-378.98096972,0.00016521,2]
[350123564,1737643842318,-32569.55969699,0.00016521,2]
[350123565,1737643842328,-7639.475676,0.00016522,2]
[350123566,1737643842338,-150.0,0.00016522,2]
[350123567,1737643842351,-3210.30165472,0.00016523,2]
[350123568,1737643842361,-150.0,0.00016523,2]
[350123569,1737643842371,-259915.79421525,0.00016524,2]
[350123570,1737643842800,-165258.23735219,0.00016524,2]
[350123571,1737643842810,-152.81142041,0.00016526,2]
[350123572,1737643842820,-18485.24603424,0.00016526,2]
[350123573,1737643842830,-150.0,0.00016527,2]
[350123574,1737643842840,-150.0,0.00016527,2]
[350123575,1737643842852,-2608.77611351,0.00016529,2]
[350123576,1737643842862,-651.44374231,0.0001653,2]
[350123577,1737643842872,-6230.71773491,0.0001653,2]
[350123578,1737643842883,-18485.24603424,0.00016531,2]
[350123579,1737643842893,-61430.6570801,0.00016531,2]
[350123580,1737643842903,-789.20070222,0.00016531,2]
[350123581,1737643842912,-11401.34711592,0.00016532,2]
[350123582,1737643842922,-3210.30165472,0.00016533,2]
[350123583,1737643842932,-12286.3398335,0.00016533,2]
[350123584,1737643842942,-150.0,0.00016533,2]
[350123586,1737643842952,-1000.0,0.00016534,2]
[350123587,1737643842962,-345.47112899,0.00016534,2]
[350123588,1737643842971,-18485.24603424,0.00016535,2]
[350123589,1737643842980,-18485.24603424,0.00016537,2]
[350123591,1737643842989,-150.0,0.00016537,2]
[350123593,1737643842999,-150.0,0.00016537,2]
[350123595,1737643843008,-247.65011416,0.00016537,2]
[350123597,1737643843018,-1077.0,0.00016538,2]
[350123598,1737643843027,-197.15552524,0.00016538,2]
[350123599,1737643843037,-16969.76400408,0.00016538,2]
[350123601,1737643843047,-6230.71773491,0.0001654,2]
[350123603,1737643843057,-283060.23684023,0.0001654,2]
[350123607,1737643843067,-1340.42544346,0.00016542,2]
[350123612,1737643843078,-283060.23684023,0.00016542,2]
[350123618,1737643843087,-200.0,0.00016545,2]
[350123624,1737643843097,-4409.86309959,0.00016547,2]
[350123628,1737643843108,-269.46704531,0.00016548,2]
[350123630,1737643843118,-3210.30165472,0.0001655,2]
[350123634,1737643843128,-150.0,0.00016552,2]
[350123638,1737643843138,-247.65011416,0.00016553,2]
[350123641,1737643843148,-345.47112899,0.00016553,2]
[350123646,1737643843158,-283060.23684023,0.00016554,2]
[350123650,1737643843170,-1059.67358038,0.00016554,2]
[350123654,1737643843180,-150.0,0.00016554,2]
[350123658,1737643843190,-150.0,0.00016555,2]
[350123661,1737643843203,-6230.71773491,0.00016556,2]
[350123663,1737643843215,-1000.0,0.00016556,2]
[350123665,1737643843226,-2123.69498189,0.00016556,2]
[350123667,1737643843235,-1059.67358038,0.00016557,2]
[350123669,1737643843245,-11401.34711592,0.00016558,2]
[350123671,1737643843254,-150.0,0.00016558,2]
[350123673,1737643843264,-283060.23684023,0.00016559,2]
[350123674,1737643843273,-13507.52398256,0.0001656,2]
[350123676,1737643843282,-269.46704531,0.0001656,2]
[350123678,1737643843291,-7639.475676,0.00016563,2]
[350123680,1737643843300,-7987.00797622,0.00016564,2]
[350123682,1737643843312,-1679.11185562,0.00016564,2]
[350123685,1737643843324,-3841.40415072,0.00016564,2]
[350123687,1737643843334,-24005.62644928,0.00016567,2]
[350123690,1737643843347,-37425.03063082,0.00016567,2]
[350123692,1737643843357,-1340.42544346,0.0001657,2]
[350123695,1737643843366,-549.04440102,0.0001657,2]
[350123697,1737643843376,-247.65011416,0.00016571,2]
[350123699,1737643843385,-150.0,0.00016571,2]
[350123701,1737643843395,-2608.77611351,0.00016571,2]
[350123703,1737643843406,-150.0,0.00016572,2]
[350123705,1737643843416,-11401.34711592,0.00016572,2]
[350123706,1737643843426,-13507.52398256,0.00016575,2]
[350123707,1737643843435,-16157.64833781,0.00016576,2]
[350123709,1737643843444,-1779.921675,0.00016577,2]
[350123711,1737643843456,-15189.84232908,0.00016577,2]
[350123713,1737643843466,-1000.0,0.00016578,2]
[350123715,1737643843476,-5118.23209044,0.00016578,2]
[350123716,1737643843486,-12286.3398335,0.00016579,2]
[350123718,1737643843495,-549.04440102,0.0001658,2]
[350123720,1737643843505,-18485.24603424,0.0001658,2]
[350123722,1737643843515,-162420.57428901,0.0001658,2]
[350123726,1737643843543,-3225.00002,0.0001658,2]
[350123781,1737643844139,-364.65472953,0.00016438,2]
[350123782,1737643844149,-75877.83410538,0.0001658,2]
[350123783,1737643844161,-183650.62315305,0.0001658,2]
[350123784,1737643844171,-200.0,0.00016581,2]
[350123785,1737643844181,-12286.3398335,0.00016581,2]
[350123786,1737643844190,-16157.64833781,0.00016581,2]
[350123787,1737643844199,-150.0,0.00016581,2]
[350123788,1737643844210,-789.20070222,0.00016581,2]
[350123789,1737643844220,-12286.3398335,0.00016582,2]
[350123790,1737643844229,-297405.59862422,0.00016583,2]
[350123791,1737643844266,-500.0,0.00016438,2]
[350123792,1737643844275,-25351.53286,0.00016583,2]
[350123793,1737643844288,-2317.9953121,0.00016583,2]
[350123794,1737643844299,-2001.54386087,0.00016583,2]
[350123795,1737643844310,-2391.48698,0.00016583,2]
[350123796,1737643844322,-3402.67345401,0.00016583,2]
[350123797,1737643844333,-1064.78952,0.00016583,2]
[350123798,1737643844345,-1423.09279397,0.00016583,2]
[350123799,1737643844361,-1663.32479844,0.00016583,2]
[350123800,1737643844412,-500.0,0.00016438,2]
[350123801,1737643844422,-44.58486402,0.00016438,2]
[350123802,1737643844563,-455.41513598,0.00016438,2]
[350123803,1737643844573,-2426.90478402,0.00016583,2]
[350123804,1737643844584,-16319.84307235,0.00016583,2]
[350123805,1737643844625,-1503.88525785,0.00016583,2]
[350123806,1737643844636,-15000.0,0.00016583,2]
[350123807,1737643844657,-52901.36024961,0.00016583,2]
[350123808,1737643844666,-5118.23209044,0.00016583,2]
[350123809,1737643844675,-3210.30165472,0.00016583,2]
[350123810,1737643844685,-1059.67358038,0.00016584,2]
[350123811,1737643844694,-11401.34711592,0.00016585,2]
[350123812,1737643844704,-16969.76400408,0.00016585,2]
[350123813,1737643844713,-7639.475676,0.00016585,2]
[350123814,1737643844723,-150.0,0.00016586,2]
[350123815,1737643844732,-13507.52398256,0.00016588,2]
[350123816,1737643844742,-150.0,0.00016588,2]
[350123817,1737643844752,-633.71615608,0.0001659,2]
[350123818,1737643844762,-1000.0,0.0001659,2]
[350123819,1737643844775,-1340.42544346,0.00016591,2]
[350123820,1737643844787,-2123.69498189,0.00016593,2]
[350123821,1737643844796,-459.41,0.00016594,2]
[350123822,1737643844806,-247.65011416,0.00016598,2]
[350123823,1737643844815,-1000.0,0.00016598,2]
[350123824,1737643844825,-2608.77611351,0.00016599,2]
[350123825,1737643844835,-3400.0,0.000166,6]
[350123826,1737643844845,-12286.3398335,0.000166,2]
[350123827,1737643844856,-633.71615608,0.00016602,2]
[350123828,1737643844866,-150.0,0.00016602,2]
[350123829,1737643844875,-283060.23684023,0.00016602,2]
[350123830,1737643844884,-150.0,0.00016603,2]
[350123831,1737643844894,-61430.6570801,0.00016604,2]
[350123832,1737643844903,-549.04440102,0.00016605,2]
[350123833,1737643844913,-150.0,0.00016605,2]
[350123834,1737643844923,-4409.86309959,0.00016607,2]
[350123835,1737643844932,-200.0,0.00016608,2]
[350123836,1737643844942,-11401.34711592,0.00016609,2]
[350123837,1737643844951,-7639.475676,0.00016609,2]
[350123838,1737643844960,-5118.23209044,0.00016611,2]
[350123839,1737643844970,-61430.6570801,0.00016611,2]
[350123840,1737643844979,-921.20813433,0.00016612,2]
[350123841,1737643844988,-183.80640727,0.00016612,2]
[350123842,1737643844997,-16157.64833781,0.00016615,2]
[350123843,1737643845007,-61430.6570801,0.00016616,2]
[350123844,1737643845018,-16969.76400408,0.00016616,2]
[350123845,1737643845038,-549.04440102,0.00016617,2]
[350123846,1737643845047,-1059.67358038,0.00016617,2]
[350123847,1737643845057,-247.65011416,0.0001662,2]
[350123848,1737643845067,-200.0,0.0001662,2]
[350123849,1737643845077,-13507.52398256,0.00016621,2]
[350123850,1737643845087,-633.71615608,0.00016621,2]
[350123851,1737643845098,-5118.23209044,0.00016623,2]
[350123852,1737643845108,-2123.69498189,0.00016623,2]
[350123853,1737643845117,-789.20070222,0.00016623,2]
[350123854,1737643845126,-549.04440102,0.00016624,2]
[350123855,1737643845135,-651.44374231,0.00016625,2]
[350123856,1737643845145,-16969.76400408,0.00016626,2]
[350123857,1737643845154,-1340.42544346,0.00016626,2]
[350123858,1737643845164,-425174.03156744,0.00016627,2]
[350123859,1737643845173,-6230.71773491,0.00016629,2]
[350123860,1737643845184,-789.20070222,0.00016629,2]
[350123861,1737643845194,-269.46704531,0.0001663,2]
[350123862,1737643845204,-1486.75834485,0.0001663,2]
[350123863,1737643845214,-7639.475676,0.00016631,2]
[350123864,1737643845224,-789.20070222,0.00016631,2]
[350123865,1737643845235,-200.0,0.00016632,2]
[350123866,1737643845245,-16157.64833781,0.00016633,2]
[350123867,1737643845254,-2608.77611351,0.00016634,2]
[350123868,1737643845264,-269.46704531,0.00016634,2]
[350123869,1737643845274,-345.47112899,0.00016635,2]
[350123870,1737643845284,-4409.86309959,0.00016635,2]
[350123871,1737643845294,-1059.67358038,0.00016637,2]
[350123872,1737643845304,-200.0,0.00016637,2]
[350123873,1737643845314,-16157.64833781,0.00016637,2]
[350123874,1737643845323,-345.47112899,0.00016638,2]
[350123875,1737643845332,-345.47112899,0.00016638,2]
[350123876,1737643845342,-4409.86309959,0.00016638,2]
[350123877,1737643845355,-269.46704531,0.00016639,2]
[350123878,1737643845365,-3210.30165472,0.00016639,2]
[350123879,1737643845375,-5118.23209044,0.0001664,2]
[350123880,1737643845385,-4409.86309959,0.00016646,2]
[350123881,1737643845395,-633.71615608,0.00016647,2]
[350123882,1737643845405,-6230.71773491,0.00016649,2]
[350123883,1737643845415,-2123.69498189,0.00016649,2]
[350123884,1737643845425,-2000.0,0.00016658,2]
[350123885,1737643845434,-200.0,0.00016658,2]
[350123886,1737643845444,-150.0,0.000167,2]
[350123887,1737643845455,-366.0,0.000167,2]
[350123888,1737643845466,-745.0,0.000167,2]
[350123889,1737643845476,-4500.0,0.000167,6]
[350123890,1737643845486,-231.0,0.000167,2]
[350123891,1737643845496,-1000.0,0.000167,2]
[350123892,1737643845505,-474.0410073,0.00016701,2]
[350123893,1737643845515,-6993.7430576,0.00016701,2]
[350123894,1737643845525,-2459.6424033,0.00016701,2]
[350123895,1737643845535,-1118.56907832,0.00016711,5]
[350123896,1737643845544,-505.73882301,0.00016711,2]
[350123897,1737643845554,-500.0,0.00016711,2]
[350123898,1737643845564,-500.0,0.00016711,2]
[350123899,1737643845573,-267.65745049,0.00016712,2]
[350123900,1737643845583,-1309662.36301555,0.00016712,2]
[350123901,1737643845601,-3000.52304174,0.00016712,2]
[350123902,1737643845612,-22173.66723304,0.00016712,2]
[350123903,1737643845624,-2727.96453768,0.00016712,2]
[350123904,1737643845635,-125657.69246733,0.00016712,2]
[350123905,1737643845710,-377.21328428,0.00016711,2]
[350123906,1737643845733,-128.68822742,0.00016711,2]
[350123907,1737643845745,-30228.2529935,0.00016712,2]
[350123908,1737643845763,-313.42239574,0.00016712,2]
[350123909,1737643845862,-500.0,0.00016438,2]
[350123910,1737643845873,-470.088,0.00016438,2]
[350123912,1737643845885,-29.912,0.00016438,2]
[350123913,1737643845895,-500.0,0.00016438,2]
[350123914,1737643845905,-150.0,0.00016438,2]
[350123916,1737643845914,-148.64,0.00016512,2]
[350123918,1737643845925,-1.36,0.00016512,2]
[350123919,1737643845935,-1000.0,0.00016584,2]
[350123920,1737643845944,-35393.0955422,0.00016712,2]
[350123921,1737643845955,-5511.61374963,0.00016712,2]
[350123922,1737643845966,-62263.20359,0.00016712,2]
[350123923,1737643846001,-300.61860405,0.0001635,2]
[350123925,1737643846011,-150.0,0.00016355,2]
[350123926,1737643846020,-98.10923111,0.00016394,2]
[350123927,1737643846032,-51.89076889,0.00016394,2]
[350123928,1737643846042,-150.0,0.00016557,2]
[350123929,1737643846051,-111.41621111,0.00016712,2]
[350123930,1737643846161,-22559.07924908,0.00016712,2]
[350123931,1737643846173,-1054.9,0.00016712,2]
[350123932,1737643846184,-945806.97528603,0.00016712,2]
[350123933,1737643846195,-371.72834786,0.00016712,2]
[350123934,1737643846208,-1896.25426735,0.00016712,2]
[350123935,1737643846219,-292.6260528,0.00016712,2]
[350123936,1737643846230,-640.67488003,0.00016712,2]
[350123937,1737643846243,-1050.0,0.00016712,2]
[350123938,1737643846260,-150.0,0.00016492,2]
[350123939,1737643846270,-764.0990865,0.00016712,2]
[350123940,1737643846283,-603.99999938,0.00016712,2]
[350123941,1737643846838,-83.83833547,0.00016318,2]
[350123942,1737643846853,-66.16166453,0.00016318,2]
[350123943,1737643846862,-500.0,0.00016438,2]
[350123944,1737643846871,-500.0,0.00016438,2]
[350123945,1737643846881,-500.0,0.00016438,2]
[350123946,1737643846890,-500.0,0.00016438,2]
[350123947,1737643846900,-150.0,0.00016443,2]
[350123948,1737643846912,-65675.13882448,0.00016712,2]
[350123949,1737643846921,-500.0,0.00016712,2]
[350123950,1737643846931,-504.690585,0.00016712,2]
[350123951,1737643846940,-613.906868,0.00016712,2]
[350123952,1737643846949,-500.0,0.00016712,2]
[350123953,1737643846959,-500.0,0.00016712,2]
[350123954,1737643846968,-500.0,0.00016712,2]
[350123955,1737643846977,-500.0,0.00016712,2]
[350123956,1737643846988,-500.0,0.00016712,2]
[350123959,1737643846997,-397.14770609,0.00016712,2]
[350123961,1737643847006,-500.0,0.00016712,2]
[350123963,1737643847016,-500.0,0.00016712,2]
[350123965,1737643847025,-363.36,0.00016712,2]
[350123967,1737643847035,-500.0,0.00016712,2]
[350123968,1737643847044,-500.0,0.00016712,2]
[350123969,1737643847053,-500.0,0.00016712,2]
[350123970,1737643847062,-500.0,0.00016712,2]
[350123971,1737643847072,-500.0,0.00016712,2]